[Event "*** Titled Tuesday Blitz"]
[Site "Chess.com"]
[Date "2020.11.24"]
[Round "6"]
[White "FMAntonio"]
[Black "DonPreuss"]
[Result "0-1"]
[WhiteElo "2351"]
[BlackElo "2251"]
[TimeControl "180+1"]
[EndTime "11:22:09 PST"]
[Termination "DonPreuss won on time"]

1. e4 {[%clk 0:03:00.9]} 1... e5 {[%clk 0:02:59.4]} 2. Nf3 {[%clk 0:03:00.5]}
2... d5 {[%clk 0:02:59.9]} 3. Nxe5 {[%clk 0:02:45.7]} 3... Bd6 {[%clk
0:02:59.3]} 4. d4 {[%clk 0:02:44.3]} 4... dxe4 {[%clk 0:02:59.4]} 5. Nc4 {[%clk
0:02:44]} 5... Ne7 {[%clk 0:02:58.8]} 6. Nc3 {[%clk 0:02:41.1]} 6... f5 {[%clk
0:02:58.6]} 7. Nxd6+ {[%clk 0:02:39.2]} 7... cxd6 {[%clk 0:02:58.3]} 8. d5
{[%clk 0:02:33.3]} 8... O-O {[%clk 0:02:56.3]} 9. Qd4 {[%clk 0:02:25.1]} 9...
Ng6 {[%clk 0:02:49.9]} 10. Be2 {[%clk 0:02:05]} 10... Nd7 {[%clk 0:02:48.4]} 11.
g4 {[%clk 0:01:54.7]} 11... Nh4 {[%clk 0:02:25.8]} 12. gxf5 {[%clk 0:01:51.2]}
12... Ne5 {[%clk 0:02:19.8]} 13. Qxe4 {[%clk 0:01:41.9]} 13... Bxf5 {[%clk
0:02:14.2]} 14. Qb4 {[%clk 0:01:26.2]} 14... Nhf3+ {[%clk 0:01:22.2]} 15. Kd1
{[%clk 0:01:19.4]} 15... Qf6 {[%clk 0:01:14.6]} 16. Be3 {[%clk 0:01:15.1]} 16...
Qg6 {[%clk 0:01:12.8]} 17. Bxf3 {[%clk 0:00:50.5]} 17... Bxc2+ {[%clk
0:01:09.5]} 18. Kd2 {[%clk 0:00:42.4]} 18... Nxf3+ {[%clk 0:01:07.2]} 19. Kc1
{[%clk 0:00:40.5]} 19... Bd3 {[%clk 0:00:54.3]} 20. Rd1 {[%clk 0:00:31.4]} 20...
Rac8 {[%clk 0:00:39.3]} 21. Qxb7 {[%clk 0:00:08.3]} 21... Bc2 {[%clk 0:00:23.8]}
22. Rd2 {[%clk 0:00:04.1]} 22... Nxd2 {[%clk 0:00:23.1]} 23. Kxd2 {[%clk
0:00:03.8]} 23... Qd3+ {[%clk 0:00:22.3]} 24. Ke1 {[%clk 0:00:02.2]} 24... Rxc3
{[%clk 0:00:17.9]} 25. bxc3 {[%clk 0:00:01.8]} 25... Qxc3+ {[%clk 0:00:18.1]}
26. Ke2 {[%clk 0:00:01.1]} 26... Bd3+ {[%clk 0:00:18.1]} 0-1

[Event "*** Titled Tuesday Blitz"]
[Site "Chess.com"]
[Date "2020.11.24"]
[Round "6"]
[White "JiiHart"]
[Black "OscarAng"]
[Result "0-1"]
[WhiteElo "2079"]
[BlackElo "2372"]
[TimeControl "180+1"]
[EndTime "11:22:10 PST"]
[Termination "OscarAng won by checkmate"]

1. e4 {[%clk 0:03:00.9]} 1... d5 {[%clk 0:02:47.6]} 2. exd5 {[%clk 0:03:00.3]}
2... Qxd5 {[%clk 0:02:48.5]} 3. Nc3 {[%clk 0:03:00.5]} 3... Qa5 {[%clk
0:02:46.3]} 4. d4 {[%clk 0:03:00.8]} 4... c6 {[%clk 0:02:46.7]} 5. Bc4 {[%clk
0:03:00.5]} 5... Nf6 {[%clk 0:02:46.8]} 6. Bd2 {[%clk 0:03:00.5]} 6... Bf5
{[%clk 0:02:46.1]} 7. Nf3 {[%clk 0:02:52]} 7... Nbd7 {[%clk 0:02:44.3]} 8. Qe2
{[%clk 0:02:50.1]} 8... e6 {[%clk 0:02:36.4]} 9. Bb3 {[%clk 0:02:43.9]} 9... Qc7
{[%clk 0:02:33.1]} 10. h3 {[%clk 0:02:40.8]} 10... Bb4 {[%clk 0:02:31.8]} 11. g4
{[%clk 0:02:38.1]} 11... Bg6 {[%clk 0:02:30]} 12. Ne5 {[%clk 0:02:33.3]} 12...
Nxe5 {[%clk 0:02:12.1]} 13. dxe5 {[%clk 0:02:31.1]} 13... Nd7 {[%clk 0:02:11.4]}
14. f4 {[%clk 0:02:24.7]} 14... O-O-O {[%clk 0:02:07.9]} 15. O-O-O {[%clk
0:02:22.8]} 15... h5 {[%clk 0:02:06.7]} 16. Rhf1 {[%clk 0:02:08.2]} 16... hxg4
{[%clk 0:02:03.5]} 17. hxg4 {[%clk 0:02:08.4]} 17... Bxc3 {[%clk 0:02:04.2]} 18.
Bxc3 {[%clk 0:02:07.3]} 18... Nc5 {[%clk 0:02:01]} 19. Qe3 {[%clk 0:01:47.8]}
19... Rxd1+ {[%clk 0:01:42.5]} 20. Rxd1 {[%clk 0:01:46.1]} 20... Qb6 {[%clk
0:01:42.8]} 21. Bd4 {[%clk 0:01:29.2]} 21... Nxb3+ {[%clk 0:01:40.3]} 22. axb3
{[%clk 0:01:28.5]} 22... Qa5 {[%clk 0:01:36.4]} 23. f5 {[%clk 0:01:00.1]} 23...
Qa1+ {[%clk 0:01:32.8]} 24. Kd2 {[%clk 0:00:57.5]} 24... Rh2+ {[%clk 0:01:32.9]}
25. Kc3 {[%clk 0:00:52.8]} 25... Qxd1 {[%clk 0:01:24.8]} 26. fxg6 {[%clk
0:00:47.5]} 26... Rxc2+ {[%clk 0:01:13.6]} 27. Kb4 {[%clk 0:00:47.3]} 27... fxg6
{[%clk 0:01:01.6]} 28. Bc3 {[%clk 0:00:40.2]} 28... a5+ {[%clk 0:00:55.3]} 29.
Kxa5 {[%clk 0:00:28]} 29... Qd5+ {[%clk 0:00:55]} 30. Kb4 {[%clk 0:00:11.5]}
30... Qb5+ {[%clk 0:00:38.8]} 31. Ka3 {[%clk 0:00:11.4]} 31... Qa6+ {[%clk
0:00:28.2]} 32. Kb4 {[%clk 0:00:11.7]} 32... b6 {[%clk 0:00:26]} 33. Bd4 {[%clk
0:00:02.7]} 33... Qa5# {[%clk 0:00:23]} 0-1

[Event "*** Titled Tuesday Blitz"]
[Site "Chess.com"]
[Date "2020.11.24"]
[Round "6"]
[White "vovachesss"]
[Black "elamier"]
[Result "1-0"]
[WhiteElo "2671"]
[BlackElo "2373"]
[TimeControl "180+1"]
[EndTime "11:22:11 PST"]
[Termination "vovachesss won by checkmate"]

1. e4 {[%clk 0:03:00.5]} 1... c5 {[%clk 0:02:55.3]} 2. c3 {[%clk 0:02:56.3]}
2... d5 {[%clk 0:02:54.3]} 3. exd5 {[%clk 0:02:56.4]} 3... Qxd5 {[%clk
0:02:55.2]} 4. Nf3 {[%clk 0:02:56.4]} 4... Nf6 {[%clk 0:02:49.3]} 5. d4 {[%clk
0:02:56.5]} 5... cxd4 {[%clk 0:02:49.3]} 6. cxd4 {[%clk 0:02:56.3]} 6... Qd8
{[%clk 0:02:49]} 7. Nc3 {[%clk 0:02:53.9]} 7... g6 {[%clk 0:02:48.9]} 8. Bc4
{[%clk 0:02:52.1]} 8... Bg7 {[%clk 0:02:48.6]} 9. O-O {[%clk 0:02:52.7]} 9...
O-O {[%clk 0:02:47.3]} 10. h3 {[%clk 0:02:53.4]} 10... Nc6 {[%clk 0:02:45.2]}
11. a3 {[%clk 0:02:49.6]} 11... b6 {[%clk 0:02:42.5]} 12. Re1 {[%clk 0:02:47.8]}
12... Bb7 {[%clk 0:02:42]} 13. Bg5 {[%clk 0:02:41.9]} 13... Na5 {[%clk
0:02:40.9]} 14. Ba2 {[%clk 0:02:41.1]} 14... Rc8 {[%clk 0:02:35.8]} 15. Ne5
{[%clk 0:02:38]} 15... Nd5 {[%clk 0:02:22.2]} 16. Nxd5 {[%clk 0:02:07.8]} 16...
Bxd5 {[%clk 0:02:20.7]} 17. Bxe7 {[%clk 0:02:03.9]} 17... Qxe7 {[%clk
0:02:15.9]} 18. Nxg6 {[%clk 0:01:34.4]} 18... Qg5 {[%clk 0:02:05.7]} 19. Ne7+
{[%clk 0:01:26.4]} 19... Kh8 {[%clk 0:02:01.3]} 20. Nxd5 {[%clk 0:01:11.6]}
20... Nc4 {[%clk 0:02:00.5]} 21. Qf3 {[%clk 0:00:56.6]} 21... Bxd4 {[%clk
0:01:46.6]} 22. Rac1 {[%clk 0:00:36.2]} 22... Ne5 {[%clk 0:01:32.9]} 23. Qd1
{[%clk 0:00:19.2]} 23... Rxc1 {[%clk 0:01:30.1]} 24. Qxc1 {[%clk 0:00:20.1]}
24... Nf3+ {[%clk 0:01:29.1]} 25. Kh1 {[%clk 0:00:15.3]} 25... Qh5 {[%clk
0:01:16.4]} 26. Re4 {[%clk 0:00:06.6]} 26... Ng5 {[%clk 0:01:12.4]} 27. Rxd4
{[%clk 0:00:04.6]} 27... Nxh3 {[%clk 0:01:12.7]} 28. Qc3 {[%clk 0:00:04.6]}
28... Nxf2+ {[%clk 0:01:11.1]} 29. Kg1 {[%clk 0:00:05.1]} 29... f6 {[%clk
0:01:03.9]} 30. Kxf2 {[%clk 0:00:04.9]} 30... Re8 {[%clk 0:00:57.9]} 31. Rf4
{[%clk 0:00:04.2]} 31... Re2+ {[%clk 0:00:56.4]} 32. Kg1 {[%clk 0:00:04.9]}
32... Kg8 {[%clk 0:00:41.5]} 33. Nxf6+ {[%clk 0:00:04.7]} 33... Kf8 {[%clk
0:00:40.8]} 34. Nxh5+ {[%clk 0:00:05.6]} 34... Ke7 {[%clk 0:00:41.3]} 35. Qf6+
{[%clk 0:00:05.9]} 35... Kd7 {[%clk 0:00:41.4]} 36. Rd4+ {[%clk 0:00:06.7]}
36... Kc7 {[%clk 0:00:41.1]} 37. Qd8+ {[%clk 0:00:07.6]} 37... Kc6 {[%clk
0:00:40.7]} 38. Qd7+ {[%clk 0:00:08.5]} 38... Kc5 {[%clk 0:00:40.8]} 39. Qd5#
{[%clk 0:00:09.4]} 1-0

[Event "*** Titled Tuesday Blitz"]
[Site "Chess.com"]
[Date "2020.11.24"]
[Round "6"]
[White "chenxiaoyuer"]
[Black "Sergienko_Sergey"]
[Result "1/2-1/2"]
[WhiteElo "2496"]
[BlackElo "2340"]
[TimeControl "180+1"]
[EndTime "11:22:13 PST"]
[Termination "Game drawn by repetition"]

1. e4 {[%clk 0:03:00.9]} 1... c5 {[%clk 0:02:59.4]} 2. Nf3 {[%clk 0:03:00.9]}
2... a6 {[%clk 0:02:58.8]} 3. g3 {[%clk 0:03:00.3]} 3... Nc6 {[%clk 0:02:56.4]}
4. Bg2 {[%clk 0:02:59.5]} 4... g6 {[%clk 0:02:55.8]} 5. d4 {[%clk 0:02:55.7]}
5... cxd4 {[%clk 0:02:55.1]} 6. Nxd4 {[%clk 0:02:56.6]} 6... Bg7 {[%clk
0:02:55.3]} 7. Ne2 {[%clk 0:02:54.4]} 7... Nf6 {[%clk 0:02:52.7]} 8. O-O {[%clk
0:02:53.8]} 8... O-O {[%clk 0:02:51.5]} 9. Nbc3 {[%clk 0:02:51.5]} 9... d6
{[%clk 0:02:51]} 10. Nd5 {[%clk 0:02:38.5]} 10... Nxd5 {[%clk 0:02:32.3]} 11.
exd5 {[%clk 0:02:36.7]} 11... Ne5 {[%clk 0:02:32.3]} 12. Be3 {[%clk 0:02:19.5]}
12... Ng4 {[%clk 0:02:28.7]} 13. Bd4 {[%clk 0:02:18]} 13... Bxd4 {[%clk
0:02:16.3]} 14. Qxd4 {[%clk 0:02:15.8]} 14... Nf6 {[%clk 0:02:13.7]} 15. a4
{[%clk 0:02:09.3]} 15... Bf5 {[%clk 0:02:11.9]} 16. c4 {[%clk 0:02:04.2]} 16...
a5 {[%clk 0:02:07.8]} 17. Nc3 {[%clk 0:02:01.7]} 17... Rc8 {[%clk 0:02:02.1]}
18. Rfe1 {[%clk 0:01:52.4]} 18... Qd7 {[%clk 0:01:54.2]} 19. Re3 {[%clk
0:01:43.1]} 19... Ng4 {[%clk 0:01:50.4]} 20. Re2 {[%clk 0:01:33.9]} 20... Ne5
{[%clk 0:01:46.7]} 21. b3 {[%clk 0:01:31.9]} 21... Bh3 {[%clk 0:01:39.6]} 22.
Rae1 {[%clk 0:01:21.7]} 22... Bxg2 {[%clk 0:01:36.6]} 23. Kxg2 {[%clk
0:01:22.6]} 23... Rfe8 {[%clk 0:01:31.6]} 24. f4 {[%clk 0:01:04.9]} 24... Ng4
{[%clk 0:01:29.4]} 25. Ne4 {[%clk 0:01:03.5]} 25... Nh6 {[%clk 0:01:17.7]} 26.
Ng5 {[%clk 0:00:56.5]} 26... Nf5 {[%clk 0:01:14.8]} 27. Qd3 {[%clk 0:00:54.8]}
27... h6 {[%clk 0:01:11.3]} 28. Nf3 {[%clk 0:00:54.6]} 28... e6 {[%clk
0:01:05.3]} 29. dxe6 {[%clk 0:00:52.2]} 29... Rxe6 {[%clk 0:01:04.2]} 30. Rxe6
{[%clk 0:00:48.2]} 30... fxe6 {[%clk 0:01:04]} 31. Nd4 {[%clk 0:00:43.4]} 31...
Nxd4 {[%clk 0:00:50.7]} 32. Qxd4 {[%clk 0:00:44.3]} 32... Kf7 {[%clk 0:00:47.6]}
33. Qe3 {[%clk 0:00:32.4]} 33... Re8 {[%clk 0:00:43.6]} 34. Kg1 {[%clk
0:00:29.7]} 34... Qc6 {[%clk 0:00:40.4]} 35. Qd4 {[%clk 0:00:26.2]} 35... Qc5
{[%clk 0:00:39.7]} 36. Qxc5 {[%clk 0:00:25.5]} 36... dxc5 {[%clk 0:00:39.8]} 37.
Rd1 {[%clk 0:00:25.5]} 37... e5 {[%clk 0:00:35.9]} 38. fxe5 {[%clk 0:00:23.2]}
38... Rxe5 {[%clk 0:00:35.2]} 39. Rd6 {[%clk 0:00:22.9]} 39... Re6 {[%clk
0:00:33.9]} 40. Rd7+ {[%clk 0:00:19.7]} 40... Re7 {[%clk 0:00:33.4]} 41. Rd6
{[%clk 0:00:18.5]} 41... Re6 {[%clk 0:00:32.2]} 42. Rd7+ {[%clk 0:00:18.7]}
42... Re7 {[%clk 0:00:32]} 43. Rd6 {[%clk 0:00:16.5]} 43... Re6 {[%clk
0:00:31.9]} 1/2-1/2

[Event "*** Titled Tuesday Blitz"]
[Site "Chess.com"]
[Date "2020.11.24"]
[Round "6"]
[White "JoliyRoger"]
[Black "annacramling"]
[Result "1-0"]
[WhiteElo "2369"]
[BlackElo "2075"]
[TimeControl "180+1"]
[EndTime "11:22:14 PST"]
[Termination "JoliyRoger won on time"]

1. Nf3 {[%clk 0:02:57.3]} 1... d5 {[%clk 0:02:55]} 2. d4 {[%clk 0:02:50.4]} 2...
Nf6 {[%clk 0:02:51.1]} 3. c4 {[%clk 0:02:50.6]} 3... e6 {[%clk 0:02:48.2]} 4.
cxd5 {[%clk 0:02:50.4]} 4... exd5 {[%clk 0:02:47.8]} 5. Nc3 {[%clk 0:02:51.3]}
5... c6 {[%clk 0:02:46.1]} 6. Bg5 {[%clk 0:02:51.6]} 6... Be7 {[%clk 0:02:45.7]}
7. Bxf6 {[%clk 0:02:51.8]} 7... Bxf6 {[%clk 0:02:46.6]} 8. e3 {[%clk 0:02:52.4]}
8... O-O {[%clk 0:02:46.4]} 9. Bd3 {[%clk 0:02:52.9]} 9... g6 {[%clk 0:02:46.2]}
10. h3 {[%clk 0:02:51.6]} 10... Bg7 {[%clk 0:02:36]} 11. O-O {[%clk 0:02:51.7]}
11... Nd7 {[%clk 0:02:33.2]} 12. b4 {[%clk 0:02:52.1]} 12... a6 {[%clk
0:02:21.6]} 13. a4 {[%clk 0:02:52]} 13... Qb6 {[%clk 0:02:19.4]} 14. b5 {[%clk
0:02:42.7]} 14... axb5 {[%clk 0:02:14.5]} 15. axb5 {[%clk 0:02:41.4]} 15... Rxa1
{[%clk 0:02:14.6]} 16. Qxa1 {[%clk 0:02:41.9]} 16... Nf6 {[%clk 0:02:10.4]} 17.
bxc6 {[%clk 0:02:41.4]} 17... bxc6 {[%clk 0:02:07.1]} 18. Rb1 {[%clk 0:02:41.7]}
18... Qc7 {[%clk 0:02:05.4]} 19. Rc1 {[%clk 0:02:36.2]} 19... Bb7 {[%clk
0:01:51.9]} 20. Qa2 {[%clk 0:02:25.4]} 20... Qe7 {[%clk 0:01:38.5]} 21. Na4
{[%clk 0:02:15.5]} 21... Ra8 {[%clk 0:01:37.5]} 22. Qc2 {[%clk 0:02:14.5]} 22...
Ne4 {[%clk 0:01:29.5]} 23. Bxe4 {[%clk 0:02:04.2]} 23... dxe4 {[%clk 0:01:30.4]}
24. Nd2 {[%clk 0:02:04.7]} 24... c5 {[%clk 0:00:34.3]} 25. Nxc5 {[%clk
0:01:48.8]} 25... Bd5 {[%clk 0:00:34.2]} 26. Ncxe4 {[%clk 0:01:41.2]} 26... h6
{[%clk 0:00:28.4]} 27. Nc3 {[%clk 0:01:31.6]} 27... Bc6 {[%clk 0:00:14.9]} 28.
d5 {[%clk 0:01:23.9]} 28... Bd7 {[%clk 0:00:12.6]} 29. e4 {[%clk 0:01:23.5]}
29... Qg5 {[%clk 0:00:07.7]} 30. Nf3 {[%clk 0:01:21.1]} 30... Qf4 {[%clk
0:00:07]} 31. Ne2 {[%clk 0:00:52.5]} 31... Qd6 {[%clk 0:00:02.7]} 32. Qd2 {[%clk
0:00:48.8]} 32... Rb8 {[%clk 0:00:02.1]} 33. Qf4 {[%clk 0:00:28]} 33... Rb3
{[%clk 0:00:02.4]} 34. Qxd6 {[%clk 0:00:27.8]} 1-0

[Event "*** Titled Tuesday Blitz"]
[Site "Chess.com"]
[Date "2020.11.24"]
[Round "6"]
[White "Chuchofrio1"]
[Black "dpopadic"]
[Result "0-1"]
[WhiteElo "2384"]
[BlackElo "2337"]
[TimeControl "180+1"]
[EndTime "11:22:14 PST"]
[Termination "dpopadic won by checkmate"]

1. d4 {[%clk 0:03:00.9]} 1... Nf6 {[%clk 0:02:59]} 2. c4 {[%clk 0:02:59.9]} 2...
g6 {[%clk 0:02:58.9]} 3. Nc3 {[%clk 0:02:59.8]} 3... Bg7 {[%clk 0:02:58.9]} 4.
e4 {[%clk 0:03:00.2]} 4... d6 {[%clk 0:02:59.6]} 5. f4 {[%clk 0:03:00.1]} 5...
O-O {[%clk 0:02:59.6]} 6. Nf3 {[%clk 0:03:00.6]} 6... c5 {[%clk 0:02:59.5]} 7.
dxc5 {[%clk 0:03:01]} 7... Qa5 {[%clk 0:02:58.2]} 8. Bd3 {[%clk 0:03:00.8]} 8...
Qxc5 {[%clk 0:02:57.2]} 9. Qe2 {[%clk 0:03:01]} 9... Bg4 {[%clk 0:02:56.3]} 10.
Be3 {[%clk 0:02:59.9]} 10... Qa5 {[%clk 0:02:56.3]} 11. O-O-O {[%clk 0:02:56.2]}
11... Nc6 {[%clk 0:02:54.3]} 12. Qf2 {[%clk 0:02:52.4]} 12... Bxf3 {[%clk
0:02:52.6]} 13. gxf3 {[%clk 0:02:51.9]} 13... Rac8 {[%clk 0:02:48.1]} 14. Kb1
{[%clk 0:02:48.7]} 14... Nd7 {[%clk 0:02:47.7]} 15. Bd2 {[%clk 0:02:46.3]} 15...
Nc5 {[%clk 0:02:35.5]} 16. Bc2 {[%clk 0:02:41.6]} 16... Nb4 {[%clk 0:02:22]} 17.
h4 {[%clk 0:02:32.3]} 17... Nxc2 {[%clk 0:02:18.1]} 18. Kxc2 {[%clk 0:02:32.4]}
18... b5 {[%clk 0:01:53.8]} 19. Nxb5 {[%clk 0:01:42.9]} 19... Qxa2 {[%clk
0:01:44.2]} 20. Bc3 {[%clk 0:01:42.8]} 20... Qxc4 {[%clk 0:01:38.8]} 21. Qf1
{[%clk 0:01:41]} 21... Qb3+ {[%clk 0:01:35.1]} 22. Kb1 {[%clk 0:01:34.8]} 22...
Na4 {[%clk 0:01:25.2]} 23. Bxg7 {[%clk 0:01:12.8]} 23... Kxg7 {[%clk 0:01:24.2]}
24. Rd2 {[%clk 0:01:12.9]} 24... Rb8 {[%clk 0:01:17.7]} 25. Nd4 {[%clk
0:01:08.8]} 25... Nc3+ {[%clk 0:01:07.6]} 26. Kc1 {[%clk 0:01:08.2]} 26... Qa2
{[%clk 0:01:05.7]} 27. Rc2 {[%clk 0:01:00.9]} 27... Na4 {[%clk 0:00:55.2]} 28.
Qg2 {[%clk 0:00:40.8]} 28... Nxb2 {[%clk 0:00:45.4]} 29. Nf5+ {[%clk 0:00:33.2]}
29... Kh8 {[%clk 0:00:43.5]} 30. h5 {[%clk 0:00:27.8]} 30... gxf5 {[%clk
0:00:40.4]} 31. Rh2 {[%clk 0:00:19.8]} 31... Nd3+ {[%clk 0:00:36]} 32. Kd2
{[%clk 0:00:19.2]} 32... Qxc2+ {[%clk 0:00:35.3]} 33. Kxc2 {[%clk 0:00:18.8]}
33... Ne1+ {[%clk 0:00:35.3]} 34. Kc3 {[%clk 0:00:17.5]} 34... Nxg2 {[%clk
0:00:34.9]} 35. Rxg2 {[%clk 0:00:18]} 35... fxe4 {[%clk 0:00:34.3]} 36. fxe4
{[%clk 0:00:17.9]} 36... h6 {[%clk 0:00:34.5]} 37. Rd2 {[%clk 0:00:17.4]} 37...
Rfc8+ {[%clk 0:00:34.1]} 38. Kd4 {[%clk 0:00:17.4]} 38... Rb4+ {[%clk
0:00:33.5]} 39. Kd5 {[%clk 0:00:17.5]} 39... Rc5# {[%clk 0:00:32.4]} 0-1

[Event "*** Titled Tuesday Blitz"]
[Site "Chess.com"]
[Date "2020.11.24"]
[Round "6"]
[White "redbaron8888"]
[Black "anon481216"]
[Result "0-1"]
[WhiteElo "2520"]
[BlackElo "2410"]
[TimeControl "180+1"]
[EndTime "11:22:16 PST"]
[Termination "anon481216 won by resignation"]

1. e4 {[%clk 0:03:00.9]} 1... c5 {[%clk 0:02:59.7]} 2. Nf3 {[%clk 0:02:58.8]}
2... Nf6 {[%clk 0:03:00.3]} 3. e5 {[%clk 0:02:54.4]} 3... Nd5 {[%clk 0:02:59.9]}
4. Nc3 {[%clk 0:02:54.3]} 4... Nxc3 {[%clk 0:02:59.3]} 5. bxc3 {[%clk
0:02:53.1]} 5... Nc6 {[%clk 0:03:00.2]} 6. d4 {[%clk 0:02:52.8]} 6... cxd4
{[%clk 0:02:47.7]} 7. cxd4 {[%clk 0:02:53.7]} 7... d5 {[%clk 0:02:44.4]} 8. c4
{[%clk 0:02:43.3]} 8... Bg4 {[%clk 0:02:41.2]} 9. Rb1 {[%clk 0:02:26.3]} 9...
Rb8 {[%clk 0:02:24.4]} 10. Be2 {[%clk 0:02:21.3]} 10... e6 {[%clk 0:02:24.1]}
11. O-O {[%clk 0:02:20.3]} 11... Be7 {[%clk 0:02:23.7]} 12. cxd5 {[%clk
0:02:19.6]} 12... Qxd5 {[%clk 0:02:22.2]} 13. Be3 {[%clk 0:02:00.8]} 13... O-O
{[%clk 0:02:20.7]} 14. Qa4 {[%clk 0:01:57.4]} 14... Rfd8 {[%clk 0:01:51.3]} 15.
Rb5 {[%clk 0:01:50.9]} 15... Qd7 {[%clk 0:01:50.4]} 16. Rfb1 {[%clk 0:01:44.4]}
16... b6 {[%clk 0:01:43.6]} 17. h3 {[%clk 0:01:42.5]} 17... Bxf3 {[%clk
0:01:40.6]} 18. Bxf3 {[%clk 0:01:42.8]} 18... Nxd4 {[%clk 0:01:40.8]} 19. Bxd4
{[%clk 0:01:41.6]} 19... Qxd4 {[%clk 0:01:40.6]} 20. Qxa7 {[%clk 0:01:38.6]}
20... Bc5 {[%clk 0:01:37.8]} 21. R5b2 {[%clk 0:01:37]} 21... Qxe5 {[%clk
0:01:36.7]} 22. a4 {[%clk 0:01:29.6]} 22... b5 {[%clk 0:01:16.3]} 23. Qa6 {[%clk
0:01:17.9]} 23... b4 {[%clk 0:01:14.1]} 24. a5 {[%clk 0:01:14.5]} 24... g6
{[%clk 0:01:13.2]} 25. Qc6 {[%clk 0:01:09.3]} 25... Rd6 {[%clk 0:01:02.5]} 26.
Qa4 {[%clk 0:01:05.5]} 26... Ra6 {[%clk 0:01:00.3]} 27. Rc2 {[%clk 0:01:01.8]}
27... Kg7 {[%clk 0:00:51.4]} 28. Re2 {[%clk 0:01:00.1]} 28... Qd4 {[%clk
0:00:46]} 29. Rd1 {[%clk 0:00:59.4]} 29... Rxa5 {[%clk 0:00:35.1]} 30. Qc2
{[%clk 0:00:53.2]} 30... Qc3 {[%clk 0:00:32.9]} 31. Qb1 {[%clk 0:00:52.1]} 31...
b3 {[%clk 0:00:22.9]} 32. Rc1 {[%clk 0:00:52.2]} 32... Qf6 {[%clk 0:00:18]} 33.
Re4 {[%clk 0:00:48.6]} 33... b2 {[%clk 0:00:17]} 34. Rce1 {[%clk 0:00:39.1]}
34... Ra1 {[%clk 0:00:16.9]} 35. Qd3 {[%clk 0:00:38.9]} 35... b1=Q {[%clk
0:00:16.8]} 36. Rxb1 {[%clk 0:00:38.9]} 36... Raxb1+ {[%clk 0:00:17]} 37. Kh2
{[%clk 0:00:39.8]} 37... Qa1 {[%clk 0:00:12.2]} 38. Kg3 {[%clk 0:00:37.7]} 38...
Qf6 {[%clk 0:00:09.1]} 39. h4 {[%clk 0:00:37.2]} 39... h5 {[%clk 0:00:09]} 40.
Kh2 {[%clk 0:00:33.7]} 40... R1b4 {[%clk 0:00:09.2]} 41. Re2 {[%clk 0:00:32.1]}
41... Qxh4+ {[%clk 0:00:08.7]} 42. Kg1 {[%clk 0:00:32.2]} 42... Rb1+ {[%clk
0:00:09.1]} 0-1

[Event "*** Titled Tuesday Blitz"]
[Site "Chess.com"]
[Date "2020.11.24"]
[Round "6"]
[White "zocpoc71"]
[Black "Margarita2907"]
[Result "1-0"]
[WhiteElo "2488"]
[BlackElo "2234"]
[TimeControl "180+1"]
[EndTime "11:22:16 PST"]
[Termination "zocpoc71 won by resignation"]

1. e4 {[%clk 0:02:26.4]} 1... c5 {[%clk 0:02:59.2]} 2. Nf3 {[%clk 0:02:24.9]}
2... d6 {[%clk 0:02:59.2]} 3. Bb5+ {[%clk 0:02:24.3]} 3... Nd7 {[%clk
0:02:57.8]} 4. c4 {[%clk 0:02:24.4]} 4... g6 {[%clk 0:02:54.7]} 5. Nc3 {[%clk
0:02:24.3]} 5... Bg7 {[%clk 0:02:54.8]} 6. d3 {[%clk 0:02:24.4]} 6... e6 {[%clk
0:02:54.7]} 7. O-O {[%clk 0:02:22.5]} 7... Ne7 {[%clk 0:02:54.6]} 8. Bg5 {[%clk
0:02:20.5]} 8... a6 {[%clk 0:02:50.9]} 9. Bxd7+ {[%clk 0:02:20.2]} 9... Bxd7
{[%clk 0:02:50.7]} 10. Qd2 {[%clk 0:02:17]} 10... O-O {[%clk 0:02:50]} 11. Bh6
{[%clk 0:02:17.2]} 11... b5 {[%clk 0:02:45.4]} 12. Bxg7 {[%clk 0:02:15.1]} 12...
Kxg7 {[%clk 0:02:46.3]} 13. b3 {[%clk 0:02:14.9]} 13... Bc6 {[%clk 0:02:36.6]}
14. Qf4 {[%clk 0:02:10.9]} 14... f5 {[%clk 0:02:27.9]} 15. e5 {[%clk 0:02:07.2]}
15... d5 {[%clk 0:02:22.8]} 16. Qh4 {[%clk 0:01:43.9]} 16... Qd7 {[%clk
0:02:05.9]} 17. Rad1 {[%clk 0:01:26.9]} 17... d4 {[%clk 0:01:52.5]} 18. Ne2
{[%clk 0:01:21]} 18... Bxf3 {[%clk 0:01:45.4]} 19. gxf3 {[%clk 0:01:21.2]} 19...
Nc6 {[%clk 0:01:40.6]} 20. f4 {[%clk 0:01:20.5]} 20... bxc4 {[%clk 0:01:30.2]}
21. bxc4 {[%clk 0:01:12.1]} 21... h6 {[%clk 0:01:15.6]} 22. h3 {[%clk
0:01:03.6]} 22... Kh7 {[%clk 0:01:12.5]} 23. Kh2 {[%clk 0:01:03.3]} 23... Rg8
{[%clk 0:01:09.8]} 24. Rg1 {[%clk 0:01:03.1]} 24... Rg7 {[%clk 0:01:08.4]} 25.
Rb1 {[%clk 0:01:01.1]} 25... Rag8 {[%clk 0:01:06.1]} 26. Rg3 {[%clk 0:00:58.3]}
26... g5 {[%clk 0:00:56.8]} 27. fxg5 {[%clk 0:00:53]} 27... Rxg5 {[%clk
0:00:56]} 28. Rxg5 {[%clk 0:00:46.6]} 28... Rxg5 {[%clk 0:00:54]} 29. f4 {[%clk
0:00:46.8]} 29... Rg6 {[%clk 0:00:44.6]} 30. Rg1 {[%clk 0:00:44.3]} 30... Rxg1
{[%clk 0:00:40.6]} 31. Kxg1 {[%clk 0:00:39.7]} 31... Qg7+ {[%clk 0:00:38.6]} 32.
Ng3 {[%clk 0:00:37.4]} 32... Nb4 {[%clk 0:00:33]} 33. Kf1 {[%clk 0:00:36.2]}
33... Nxd3 {[%clk 0:00:30.8]} 34. Nh5 {[%clk 0:00:36.5]} 34... Qg6 {[%clk
0:00:21]} 35. Qe7+ {[%clk 0:00:32.6]} 35... Kg8 {[%clk 0:00:18.6]} 36. Nf6+
{[%clk 0:00:30.7]} 36... Kh8 {[%clk 0:00:17.5]} 37. Qf8+ {[%clk 0:00:30]} 1-0